bitfinex/quotes_BTCUSD_20250101
["timestamp","ask_amount","ask_price","bid_price","bid_amount"]
[1735708167570,0.99645865,93768.0,93767.0,0.0778706]
[1735708167793,1.00345865,93768.0,93767.0,0.0788706]
[1735708168199,0.99645865,93768.0,93767.0,0.0778706]
[1735708168423,1.00345865,93768.0,93767.0,0.0788706]
[1735708168795,1.00045865,93768.0,93767.0,0.0788706]
[1735708169225,0.63638384,93768.0,93767.0,0.0788706]
[1735708169647,0.660774,93768.0,93767.0,6e-07]
[1735708169975,0.506429,93768.0,93767.0,6e-07]
[1735708170117,0.506429,93768.0,93767.0,2e-07]
[1735708170345,0.5065143,93768.0,93767.0,2e-07]
[1735708170569,1.0065143,93768.0,93767.0,2e-07]
[1735708171817,0.36331,93760.0,93759.0,0.06884455]
[1735708172016,0.36817701,93760.0,93759.0,0.06884455]
[1735708173035,0.36917701,93760.0,93759.0,0.06884455]
[1735708174791,0.37217701,93760.0,93759.0,0.06884455]
[1735708180584,0.15,93759.0,93752.0,0.0758]
[1735708181015,0.15485716,93759.0,93752.0,0.0758]
[1735708181731,0.16729497,93760.0,93752.0,0.0758]
[1735708182036,0.004,93759.0,93752.0,0.0758]
[1735708182534,0.003,93759.0,93752.0,0.0758]
[1735708182673,0.16729497,93760.0,93752.0,0.0758]
[1735708182876,0.28812643,93759.0,93752.0,0.0758]
[1735708183939,0.43812643,93759.0,93752.0,0.0758]
[1735708184132,0.15,93759.0,93752.0,0.0758]
[1735708184557,0.151,93759.0,93752.0,0.0758]
[1735708184695,0.153,93759.0,93752.0,0.0758]
[1735708184912,0.152,93759.0,93752.0,0.0758]
[1735708185108,0.15,93759.0,93752.0,0.0758]
[1735708185367,0.157,93759.0,93752.0,0.0758]
[1735708188032,1.775587,93759.0,93758.0,6e-07]
[1735708188240,0.157,93759.0,93758.0,6e-07]
[1735708194420,0.0849937,93760.0,93758.0,6e-07]
[1735708194623,1.412995,93759.0,93758.0,6e-07]
[1735708194828,1.419668,93760.0,93758.0,6e-07]
[1735708195023,1.4198386,93760.0,93758.0,6e-07]
[1735708195203,1.387995,93759.0,93758.0,6e-07]
[1735708196503,1.542995,93759.0,93758.0,6e-07]
[1735708196706,0.155,93759.0,93758.0,6e-07]
[1735708197368,0.157,93759.0,93758.0,6e-07]
[1735708204394,0.157,93759.0,93758.0,0.0752006]
[1735708204689,0.266403,93759.0,93758.0,0.0752006]
[1735708205877,0.59044619,93759.0,93758.0,0.0752006]
[1735708206918,1.09044619,93759.0,93758.0,0.0752006]
[1735708208097,1.28441219,93759.0,93758.0,0.0752006]
[1735708208769,1.25149319,93759.0,93758.0,0.0752006]
[1735708209229,0.98104319,93759.0,93758.0,0.0752006]
[1735708211001,0.657,93759.0,93758.0,0.0752006]
[1735708216645,0.657,93759.0,93758.0,0.1203006]
[1735708221751,0.45612164,93759.0,93758.0,0.1203006]
[1735708222786,0.49999964,93759.0,93758.0,0.1203006]
[1735708223919,0.64999964,93759.0,93758.0,0.1203006]
[1735708226828,0.34982628,93759.0,93758.0,0.1203006]
[1735708227809,0.64999928,93759.0,93758.0,0.1203006]
[1735708228495,0.64999928,93759.0,93758.0,0.11733493]
[1735708232064,0.65962387,93759.0,93758.0,0.11742023]
[1735708234341,0.65962387,93759.0,93758.0,0.07232023]
[1735708236148,0.67633839,93759.0,93758.0,0.07232023]
[1735708237043,0.17633911,93759.0,93758.0,0.07232023]
[1735708237474,0.15962459,93759.0,93758.0,0.07232023]
[1735708244577,0.15979519,93759.0,93758.0,0.07232023]
[1735708244959,0.17650971,93759.0,93758.0,0.07232023]
[1735708246490,0.17650971,93759.0,93758.0,0.11752023]
[1735708248034,0.15979519,93759.0,93758.0,0.11752023]
[1735708251332,0.17650962,93759.0,93758.0,0.11752023]
[1735708252444,0.15979519,93759.0,93758.0,0.11752023]
[1735708255461,0.15979519,93759.0,93758.0,0.07232023]
[1735708255669,0.17650962,93759.0,93758.0,0.07232023]
[1735708256566,0.15979519,93759.0,93758.0,0.07232023]
[1735708265375,0.00979519,93759.0,93758.0,0.22380655]
[1735708265612,0.00979519,93759.0,93758.0,0.38813803]
[1735708266556,0.16179519,93759.0,93758.0,0.38813803]
[1735708267011,0.15979519,93759.0,93758.0,0.38813803]
[1735708267220,0.15979519,93759.0,93758.0,0.39213803]
[1735708267462,0.15979519,93759.0,93758.0,0.38813803]
[1735708267684,0.39999073,93759.0,93758.0,0.39213803]
[1735708268136,0.39999073,93759.0,93758.0,0.38813803]
[1735708268330,0.39999073,93759.0,93758.0,0.39113803]
[1735708268589,0.15979519,93759.0,93758.0,0.38913803]
[1735708269037,0.15979519,93759.0,93758.0,0.38813803]
[1735708269250,0.15979519,93759.0,93758.0,0.38913803]
[1735708269888,0.15979519,93759.0,93758.0,0.38813803]
[1735708270470,0.15979519,93759.0,93758.0,0.39113803]
[1735708270660,0.35183106,93759.0,93758.0,0.39213803]
[1735708270868,0.35183106,93759.0,93758.0,0.38913803]
[1735708271077,0.35183106,93759.0,93758.0,0.39213803]
[1735708271797,0.35183106,93759.0,93758.0,0.39113803]
[1735708271972,0.15979519,93759.0,93758.0,0.38813803]
[1735708272306,0.16079519,93759.0,93758.0,0.39613803]
[1735708272709,0.16079519,93759.0,93758.0,0.32152819]
[1735708272949,0.16079519,93759.0,93758.0,0.39713803]
[1735708280134,0.213308,93761.0,93759.0,0.083]
[1735708280347,0.213308,93761.0,93760.0,0.18698632]
[1735708282065,0.213308,93761.0,93760.0,0.19198632]
[1735708282245,0.213308,93761.0,93760.0,0.19398632]
[1735708283820,0.213308,93761.0,93760.0,0.18898632]
[1735708284318,0.214308,93761.0,93760.0,0.19598632]
[1735708284526,0.213308,93761.0,93760.0,0.18898632]
[1735708284753,0.213308,93761.0,93760.0,0.18698632]
[1735708284936,0.214308,93761.0,93760.0,0.19698632]
[1735708285515,0.214308,93761.0,93760.0,0.19398632]
[1735708285923,0.214308,93761.0,93760.0,0.19698632]
[1735708287239,0.364308,93761.0,93760.0,0.19698632]
[1735708287695,0.37020225,93761.0,93760.0,0.18698632]
[1735708287905,0.37020225,93761.0,93760.0,0.19298632]
[1735708288114,0.37020225,93761.0,93760.0,0.19598632]
[1735708289385,0.37020225,93761.0,93760.0,0.19298632]
[1735708289610,0.37020225,93761.0,93760.0,0.19598632]
[1735708289824,0.37020225,93761.0,93760.0,0.18998632]
[1735708290033,0.37120225,93761.0,93760.0,0.19798632]
[1735708292705,0.37137285,93761.0,93760.0,0.19798632]
[1735708293114,0.37137285,93761.0,93760.0,0.19143583]
[1735708305303,0.37137285,93761.0,93760.0,0.19152113]
[1735708311615,0.56340872,93761.0,93760.0,0.19152113]
[1735708311950,0.56340872,93761.0,93760.0,0.18852113]
[1735708312414,0.37037285,93761.0,93760.0,0.18052113]
[1735708313404,0.37037285,93761.0,93760.0,0.18352113]
[1735708313782,0.37037285,93761.0,93760.0,0.18052113]
[1735708313986,0.37037285,93761.0,93760.0,0.19052113]
[1735708314421,0.37037285,93761.0,93760.0,0.18352113]
[1735708314658,0.37037285,93761.0,93760.0,0.18752113]
[1735708314886,0.37037285,93761.0,93760.0,0.18052113]
[1735708315084,0.37037285,93761.0,93760.0,0.18252113]
[1735708315257,0.37037285,93761.0,93760.0,0.18552113]
[1735708315467,0.37037285,93761.0,93760.0,0.18252113]
[1735708315829,0.37037285,93761.0,93760.0,0.18552113]
[1735708316745,0.37037285,93761.0,93760.0,0.18352113]
[1735708316972,0.00706485,93761.0,93760.0,0.18352113]
[1735708317451,0.00706485,93761.0,93760.0,0.18552113]
[1735708317624,0.22037285,93761.0,93760.0,0.18252113]
[1735708317869,0.22037285,93761.0,93760.0,0.18452113]
[1735708318039,0.22037285,93761.0,93760.0,0.18652113]
[1735708319868,0.37037285,93761.0,93760.0,0.18052113]
[1735708320061,0.37037285,93761.0,93760.0,0.18252113]
[1735708321201,0.37037285,93761.0,93760.0,0.18552113]
[1735708322477,0.37037285,93761.0,93760.0,0.18252113]
[1735708322729,0.37037285,93761.0,93760.0,0.18652113]
[1735708322968,0.37037285,93761.0,93760.0,0.18452113]
[1735708323191,0.37037285,93761.0,93760.0,0.18652113]
[1735708323920,0.37037285,93761.0,93760.0,0.18452113]
[1735708324150,0.37037285,93761.0,93760.0,0.18652113]
[1735708324383,0.37037285,93761.0,93760.0,0.18252113]
[1735708324599,0.37037285,93761.0,93760.0,0.18452113]
[1735708324849,0.37037285,93761.0,93760.0,0.18052113]
[1735708325271,0.37037285,93761.0,93760.0,0.18452113]
[1735708325973,0.37037285,93761.0,93760.0,0.18652113]
[1735708326185,0.15,93763.0,93760.0,0.18652113]
[1735708326444,0.00576129,93761.0,93760.0,0.18652113]
[1735708326695,0.363308,93761.0,93760.0,0.18652113]
[1735708326958,0.36906929,93761.0,93760.0,0.18652113]
[1735708327214,0.36906929,93761.0,93760.0,0.18452113]
[1735708327427,0.36906929,93761.0,93760.0,0.18652113]
[1735708327894,0.36906929,93761.0,93760.0,0.18452113]
[1735708329943,0.32906929,93761.0,93760.0,0.18652113]
[1735708330381,0.32915459,93761.0,93760.0,0.18652113]
[1735708330620,0.15584659,93761.0,93760.0,0.18652113]
[1735708331592,0.15584659,93761.0,93760.0,0.31333656]
[1735708332071,0.15584659,93761.0,93760.0,0.30933656]
[1735708332300,0.15584659,93761.0,93760.0,0.31533656]
[1735708332782,0.15584659,93761.0,93760.0,0.28024277]
[1735708333011,0.15584659,93761.0,93760.0,0.27824277]
[1735708333245,0.15584659,93761.0,93760.0,0.28124277]
[1735708333861,0.1500853,93761.0,93760.0,0.28124277]
[1735708334196,0.1558333,93761.0,93760.0,0.28124277]
[1735708335893,0.1558333,93761.0,93760.0,0.28028828]
[1735708337044,0.0058333,93761.0,93760.0,0.69577836]
[1735708337459,8.53e-05,93761.0,93760.0,0.69577836]
[1735708339114,8.53e-05,93761.0,93760.0,0.62860812]
[1735708339534,8.53e-05,93761.0,93760.0,0.63760812]
[1735708339755,0.00013525,93768.0,93767.0,0.49902548]
[1735708339965,0.00013525,93768.0,93767.0,0.6260118]
[1735708340364,0.00013525,93768.0,93767.0,0.7260118]
[1735708340596,8.53e-05,93771.0,93770.0,0.33612164]
[1735708340810,8.53e-05,93771.0,93770.0,0.5127178]
[1735708341642,8.53e-05,93776.0,93775.0,0.09172164]
[1735708341857,8.53e-05,93776.0,93775.0,0.4127178]
[1735708342063,8.53e-05,93776.0,93775.0,0.50664578]
[1735708343606,8.53e-05,93776.0,93775.0,0.60664578]
[1735708344183,8.53e-05,93776.0,93775.0,0.61364578]
[1735708344391,8.53e-05,93776.0,93775.0,0.62264578]
[1735708344638,8.53e-05,93776.0,93775.0,0.60664578]
[1735708344997,8.53e-05,93776.0,93775.0,0.62264578]
[1735708346001,0.213224,93798.0,93791.0,0.09172164]
[1735708346214,0.213224,93798.0,93791.0,0.4177178]
[1735708346417,0.005989,93792.0,93791.0,0.4177178]
[1735708346625,0.0001706,93792.0,93791.0,0.4177178]
[1735708347447,0.0001706,93792.0,93791.0,0.4317178]
[1735708347904,0.0001706,93792.0,93791.0,0.4227178]
[1735708348079,0.0001706,93792.0,93791.0,0.4267178]
[1735708348277,0.0001706,93792.0,93791.0,0.4317178]
[1735708349702,0.00599046,93792.0,93791.0,0.4267178]
[1735708349934,0.0001706,93792.0,93791.0,0.4317178]
[1735708350135,0.00599046,93792.0,93791.0,0.4227178]
[1735708350337,0.0001706,93792.0,93791.0,0.4227178]
[1735708350538,0.00599046,93792.0,93791.0,0.4317178]
[1735708351299,0.00599046,93792.0,93791.0,0.4177178]
[1735708351688,0.00599046,93792.0,93791.0,0.4297178]
[1735708351907,0.00599046,93792.0,93791.0,0.4217178]
[1735708353104,0.00599046,93792.0,93791.0,0.4177178]
[1735708353315,0.00599046,93792.0,93791.0,0.4217178]
[1735708353903,0.00599046,93792.0,93791.0,0.4257178]
[1735708354108,0.00599046,93792.0,93791.0,0.4217178]
[1735708354513,0.00599046,93792.0,93791.0,0.4297178]
[1735708354870,0.00599046,93792.0,93791.0,0.4257178]
[1735708355141,0.00599046,93792.0,93791.0,0.4177178]
[1735708355554,0.00599046,93792.0,93791.0,0.4247178]
[1735708356290,0.00599046,93792.0,93791.0,0.4287178]
[1735708356696,0.39991857,93794.0,93793.0,0.07260984]
[1735708356913,0.39991857,93794.0,93793.0,0.19959616]
[1735708357934,0.39991857,93794.0,93793.0,0.20259616]
[1735708358353,0.39991857,93794.0,93793.0,0.20859616]
[1735708358575,0.18668557,93794.0,93793.0,0.20259616]
[1735708358969,0.18668557,93794.0,93793.0,0.20859616]
[1735708359853,0.18668557,93794.0,93793.0,0.20559616]
[1735708360279,0.18668557,93794.0,93793.0,0.20159616]
[1735708360717,0.18668557,93794.0,93793.0,0.19959616]
[1735708361144,0.18668557,93794.0,93793.0,0.20659616]
[1735708361589,0.18668557,93794.0,93793.0,0.19959616]
[1735708361801,0.18668557,93794.0,93793.0,0.20159616]
[1735708362011,0.18668557,93794.0,93793.0,0.20759616]
[1735708362926,0.18668557,93794.0,93793.0,0.20559616]
[1735708363280,0.18668557,93794.0,93793.0,0.20759616]
[1735708363526,0.18668557,93794.0,93793.0,0.20159616]
[1735708363945,0.18668557,93794.0,93793.0,0.20759616]
[1735708364436,0.19154332,93794.0,93793.0,0.20759616]
[1735708364893,0.19162862,93794.0,93793.0,0.20759616]
[1735708371337,0.19168356,93794.0,93793.0,0.20759616]
[1735708373844,0.19168356,93794.0,93793.0,0.28619616]
[1735708375331,0.1500853,93799.0,93793.0,0.28619616]
[1735708375533,0.1500853,93799.0,93794.0,0.12698632]
[1735708375883,0.3633063,93799.0,93798.0,0.09560984]
[1735708376043,0.3633063,93799.0,93798.0,0.19959616]
[1735708377068,0.3633563,93799.0,93798.0,0.19959616]
[1735708378211,0.3633563,93799.0,93798.0,0.20259616]
[1735708379122,0.3633563,93799.0,93798.0,0.20459616]
[1735708380450,0.3633563,93799.0,93798.0,0.28469616]
[1735708388495,0.3633563,93799.0,93798.0,0.28486656]
[1735708396263,0.2133563,93799.0,93798.0,0.28486656]
[1735708397659,0.0001353,93799.0,93798.0,0.3765882]
[1735708397887,0.0001353,93799.0,93798.0,0.4251882]
[1735708398326,0.19222824,93799.0,93798.0,0.4251882]
[1735708398576,0.19222824,93799.0,93798.0,0.4231882]
[1735708398840,0.19222824,93799.0,93798.0,0.4291882]
[1735708399067,0.0001353,93799.0,93798.0,0.4261882]
[1735708399304,0.0001353,93799.0,93798.0,0.4291882]
[1735708399540,0.0001353,93799.0,93798.0,0.4341882]
[1735708400590,0.0001353,93799.0,93798.0,0.4251882]
[1735708400836,0.0001353,93799.0,93798.0,0.4341882]
[1735708401766,0.0001353,93799.0,93798.0,0.4291882]
[1735708402008,0.0001353,93799.0,93798.0,0.4351882]
[1735708404505,0.0001353,93799.0,93798.0,0.53917452]
[1735708411133,0.0001353,93799.0,93798.0,0.52417452]
[1735708411370,0.0001353,93799.0,93798.0,0.53917452]
[1735708411862,0.0001353,93799.0,93798.0,0.53017452]
[1735708412106,0.0001353,93799.0,93798.0,0.53317452]
[1735708412317,0.0001353,93799.0,93798.0,0.54017452]
[1735708418320,0.0001353,93799.0,93798.0,0.52417452]
[1735708418777,0.0001353,93799.0,93798.0,0.54117452]
[1735708419368,0.0001353,93799.0,93798.0,0.4371882]
[1735708420090,0.0001353,93799.0,93798.0,0.4281882]
[1735708420325,0.0001353,93799.0,93798.0,0.4371882]
[1735708420572,0.0001353,93799.0,93798.0,0.4281882]
[1735708421034,0.0001353,93799.0,93798.0,0.4291882]
[1735708421243,0.0001353,93799.0,93798.0,0.4381882]
[1735708421704,0.0001353,93799.0,93798.0,0.4291882]
[1735708421930,0.0001353,93799.0,93798.0,0.4381882]
[1735708423999,0.0001353,93799.0,93798.0,0.4291882]
[1735708424234,0.0001353,93799.0,93798.0,0.4381882]
[1735708424503,0.0001353,93799.0,93798.0,0.4291882]
[1735708424749,0.0001353,93799.0,93798.0,0.4381882]
[1735708430470,0.0001353,93799.0,93798.0,0.4291882]
[1735708430924,0.0001353,93799.0,93798.0,0.4381882]
[1735708439329,0.0001353,93799.0,93798.0,0.45577783]
[1735708441870,0.0001353,93799.0,93798.0,0.50271152]
[1735708449335,0.0001353,93799.0,93798.0,0.45577783]
[1735708451330,2.49979488,93800.0,93799.0,0.11472164]
[1735708451540,2.49979488,93800.0,93799.0,0.5830388]
[1735708451980,2.49979488,93800.0,93799.0,0.60062843]
[1735708452706,2.49979488,93800.0,93799.0,0.60962843]
[1735708452914,2.49979488,93800.0,93799.0,0.71361475]
[1735708453464,2.49979488,93800.0,93799.0,0.72261475]
[1735708453887,2.49979488,93800.0,93799.0,0.70461475]
[1735708454324,2.49979488,93800.0,93799.0,0.72161475]
[1735708457546,2.49988008,93800.0,93799.0,0.72161475]
[1735708458943,2.49988008,93800.0,93799.0,0.71261475]
[1735708459369,2.49988008,93800.0,93799.0,0.72161475]
[1735708459787,2.49988008,93800.0,93799.0,0.71361475]
[1735708460663,2.49988008,93800.0,93799.0,0.72161475]
[1735708462463,2.49988008,93800.0,93799.0,0.82161475]
[1735708462691,2.49988008,93800.0,93799.0,0.92161475]
[1735708463112,2.49988008,93800.0,93799.0,0.91361475]
[1735708463332,2.49988008,93800.0,93799.0,0.92261475]
[1735708463773,2.49988008,93800.0,93799.0,0.92721353]
[1735708463982,2.49988008,93800.0,93799.0,0.91361475]
[1735708464418,2.49988008,93800.0,93799.0,0.94176265]
[1735708464628,2.49988008,93800.0,93799.0,1.30602891]
[1735708464839,2.49988008,93800.0,93799.0,1.29702891]
[1735708465091,2.49988008,93800.0,93799.0,1.27788101]
[1735708466234,2.49988008,93800.0,93799.0,1.26029138]
[1735708466439,2.49988008,93800.0,93799.0,1.25129138]
[1735708466647,2.49988008,93800.0,93799.0,1.2688777]
[1735708466827,2.49988008,93800.0,93799.0,1.2778777]
[1735708467183,2.49988008,93800.0,93799.0,1.2688777]
[1735708467402,2.49988008,93800.0,93799.0,1.2598777]
[1735708467612,2.49988008,93800.0,93799.0,1.17389138]
[1735708467813,2.49988008,93800.0,93799.0,1.31819651]
[1735708468019,2.49988008,93800.0,93799.0,1.30919651]
[1735708468310,2.49988008,93800.0,93799.0,1.31819651]
[1735708469265,2.49988008,93800.0,93799.0,0.96293025]
[1735708469488,2.49988008,93800.0,93799.0,0.96310065]
[1735708470452,2.49988008,93800.0,93799.0,0.81879552]
[1735708472047,2.49988008,93800.0,93799.0,0.30407452]
[1735708472279,2.49988008,93800.0,93799.0,0.13974304]
[1735708472492,2.71823214,93800.0,93799.0,0.13974304]
[1735708472917,2.71823214,93800.0,93799.0,0.12215672]
[1735708473131,2.71823214,93800.0,93799.0,0.11315672]
[1735708473559,2.71823214,93800.0,93799.0,0.10815672]
[1735708473770,2.71823214,93800.0,93799.0,0.18076656]
[1735708473984,2.71823214,93800.0,93799.0,0.11315672]
[1735708474191,2.88823214,93800.0,93799.0,0.0001704]
[1735708474399,2.9188816,93800.0,93799.0,0.0031704]
[1735708474614,2.9188816,93800.0,93799.0,0.0091704]
[1735708474826,3.11097454,93800.0,93799.0,0.0061704]
[1735708475265,3.08032508,93800.0,93799.0,0.0001704]
[1735708475881,2.88823214,93800.0,93799.0,0.0001704]
[1735708476084,2.88820674,93800.0,93799.0,0.0001704]
[1735708476282,2.88820674,93800.0,93799.0,0.0031704]
[1735708476765,2.88820674,93800.0,93799.0,0.0001704]
[1735708477174,2.89020674,93800.0,93799.0,0.0001704]
[1735708477662,2.88820674,93800.0,93799.0,0.0001704]
[1735708477928,2.88920674,93800.0,93799.0,0.0001704]
[1735708479360,2.88916324,93800.0,93799.0,0.0001704]
[1735708480819,2.88816324,93800.0,93799.0,0.0001704]
[1735708481061,2.88816324,93800.0,93799.0,0.0011704]
[1735708481453,2.88816324,93800.0,93799.0,0.0001704]
[1735708481673,2.88916324,93800.0,93799.0,0.0001704]
[1735708486302,2.88920459,93800.0,93799.0,0.0001704]
[1735708495004,2.88916324,93800.0,93799.0,0.0001704]
[1735708495961,2.73653377,93800.0,93799.0,0.0001704]
[1735708498254,2.51129585,93800.0,93799.0,0.0001704]
[1735708500193,2.49129585,93800.0,93799.0,0.0001704]
[1735708502245,2.53965343,93800.0,93799.0,0.0001704]
[1735708502451,3.49121685,93800.0,93799.0,0.0001704]
[1735708502659,3.19330122,93800.0,93799.0,0.0001704]
[1735708502868,2.97692322,93800.0,93799.0,4e-07]
[1735708503099,2.21338022,93800.0,93799.0,4e-07]
[1735708503512,2.21438022,93800.0,93799.0,4e-07]
[1735708503926,2.21438022,93800.0,93798.0,8e-07]
[1735708503927,0.15827836,93799.0,93798.0,8e-07]
[1735708504139,0.71259136,93799.0,93798.0,8e-07]
[1735708504378,0.23018419,93799.0,93798.0,8e-07]
[1735708505318,0.22190583,93799.0,93798.0,8e-07]
[1735708505954,0.22490583,93799.0,93798.0,8e-07]
[1735708506342,0.22790583,93799.0,93798.0,8e-07]
[1735708506923,0.24461503,93799.0,93798.0,8e-07]
[1735708507104,0.22790583,93799.0,93798.0,8e-07]
[1735708507627,0.20790583,93799.0,93798.0,8e-07]
[1735708507834,0.20490583,93799.0,93798.0,8e-07]
[1735708508238,0.20690583,93799.0,93798.0,8e-07]
[1735708508438,0.363253,93785.0,93784.0,0.0731712]
[1735708508766,0.363253,93785.0,93784.0,0.0732212]
[1735708508916,0.36824315,93785.0,93784.0,0.0732212]
[1735708509809,0.36824315,93785.0,93784.0,0.0752212]
[1735708511577,0.36824315,93785.0,93784.0,0.0792212]
[1735708514140,0.36824315,93785.0,93784.0,0.00605]
[1735708515161,0.36824315,93785.0,93784.0,0.0062206]
[1735708519781,0.36824315,93785.0,93784.0,0.0022206]
[1735708520185,0.55990117,93785.0,93784.0,0.0012206]
[1735708520656,0.55990117,93785.0,93784.0,0.0022206]
[1735708521190,0.55990117,93785.0,93784.0,0.0012206]
[1735708521384,0.36824315,93785.0,93784.0,0.0012206]
[1735708521616,0.36824315,93785.0,93784.0,0.0022206]
[1735708521775,0.00499015,93785.0,93784.0,0.0022206]
[1735708521974,0.0167095,93785.0,93784.0,0.0002206]
[1735708522180,0.45276149,93787.0,93784.0,0.0002206]
[1735708522653,0.213253,93785.0,93784.0,0.0002206]
[1735708522849,0.21823356,93785.0,93784.0,0.0002206]
[1735708523302,0.21823356,93785.0,93784.0,0.0012206]
[1735708524261,0.36823356,93785.0,93784.0,0.0012206]
[1735708525114,0.38494307,93785.0,93784.0,0.0012206]
[1735708526692,0.36831886,93785.0,93784.0,0.0012206]
[1735708530924,0.36831886,93785.0,93784.0,0.0775206]
[1735708531176,0.38502884,93785.0,93784.0,0.0775206]
[1735708532364,0.01679528,93785.0,93784.0,0.0775206]
[1735708533666,0.23004828,93785.0,93784.0,0.0775206]
[1735708535706,0.38004828,93785.0,93784.0,0.0775206]
[1735708537840,0.38004828,93785.0,93784.0,0.0765206]
[1735708538822,0.57278829,93785.0,93784.0,0.0765206]
[1735708539232,0.57178829,93785.0,93784.0,0.0765206]
[1735708539474,0.57278829,93785.0,93784.0,0.0765206]
[1735708540679,0.56858035,93785.0,93784.0,0.0765206]
[1735708540878,0.55599301,93785.0,93784.0,0.0765206]
[1735708541501,0.364253,93785.0,93784.0,0.0765206]
[1735708542267,0.363253,93785.0,93784.0,0.0765206]
[1735708542618,0.364253,93785.0,93784.0,0.0765206]
[1735708542827,0.363253,93785.0,93784.0,0.0765206]
[1735708543160,0.364253,93785.0,93784.0,0.0765206]
[1735708544345,0.3809617,93785.0,93784.0,0.0765206]
[1735708545237,0.364253,93785.0,93784.0,0.0765206]
[1735708548235,0.38096168,93785.0,93784.0,0.0765206]
[1735708548885,0.364253,93785.0,93784.0,0.0765206]
[1735708549072,0.3643383,93785.0,93784.0,0.0765206]
[1735708553611,0.65257295,93785.0,93784.0,0.0765206]
[1735708555580,0.42986662,93785.0,93784.0,0.0765206]
[1735708556693,0.64311962,93785.0,93784.0,0.0765206]
[1735708557178,0.35488497,93785.0,93784.0,0.0765206]
[1735708558904,0.33817622,93785.0,93784.0,0.0765206]
[1735708566676,0.0010853,93785.0,93784.0,0.3940384]
[1735708567151,0.28931995,93785.0,93784.0,0.3940384]
[1735708567378,0.28831995,93785.0,93784.0,0.3940384]
[1735708568302,8.53e-05,93785.0,93784.0,0.3950384]
[1735708569076,8.53e-05,93785.0,93784.0,0.3940384]
[1735708569306,8.53e-05,93785.0,93784.0,0.3980384]
[1735708569536,8.53e-05,93785.0,93784.0,0.4060384]
[1735708570011,8.53e-05,93785.0,93784.0,0.4020384]
[1735708570247,8.53e-05,93785.0,93784.0,0.3940384]
[1735708570502,8.53e-05,93785.0,93784.0,0.4030384]
[1735708571410,8.53e-05,93785.0,93784.0,0.4070384]
[1735708571812,8.53e-05,93785.0,93784.0,0.4030384]
[1735708572028,8.53e-05,93785.0,93784.0,0.4070384]
[1735708572459,8.53e-05,93785.0,93784.0,0.3980384]
[1735708572684,8.53e-05,93785.0,93784.0,0.4030384]
[1735708572882,8.53e-05,93785.0,93784.0,0.3980384]
[1735708573321,8.53e-05,93785.0,93784.0,0.4070384]
[1735708573532,8.53e-05,93785.0,93784.0,0.3980384]
[1735708574991,8.53e-05,93785.0,93784.0,0.4070384]
[1735708575314,8.53e-05,93785.0,93784.0,0.3940384]
[1735708575613,8.53e-05,93785.0,93784.0,0.4070384]
[1735708576033,8.53e-05,93785.0,93784.0,0.4030384]
[1735708576227,8.53e-05,93785.0,93784.0,0.4070384]
[1735708576394,8.53e-05,93785.0,93784.0,0.3980384]
[1735708576617,8.53e-05,93785.0,93784.0,0.4070384]
[1735708576823,8.53e-05,93785.0,93784.0,0.4030384]
[1735708577072,8.53e-05,93785.0,93784.0,0.4070384]
[1735708577933,8.53e-05,93785.0,93784.0,0.3980384]
[1735708578139,8.53e-05,93785.0,93784.0,0.4070384]
[1735708578315,8.53e-05,93785.0,93784.0,0.4030384]
[1735708578739,8.53e-05,93785.0,93784.0,0.4080384]
[1735708580237,8.53e-05,93785.0,93784.0,0.4030384]
[1735708580842,8.53e-05,93785.0,93784.0,0.3940384]
[1735708581270,8.53e-05,93785.0,93784.0,0.4030384]
[1735708581745,8.53e-05,93785.0,93784.0,0.3940384]
[1735708581927,8.53e-05,93785.0,93784.0,0.4030384]
[1735708582568,8.53e-05,93785.0,93784.0,0.4080384]
[1735708583198,8.53e-05,93785.0,93784.0,0.4030384]
[1735708583329,8.53e-05,93785.0,93784.0,0.4080384]
[1735708586121,8.53e-05,93785.0,93784.0,0.3940384]
[1735708586526,8.53e-05,93785.0,93784.0,0.4080384]
[1735708587737,8.53e-05,93785.0,93784.0,0.4310384]
[1735708588767,8.53e-05,93785.0,93784.0,0.4220384]
[1735708588976,8.53e-05,93785.0,93784.0,0.50779454]
[1735708589185,8.53e-05,93785.0,93784.0,0.51179454]
[1735708589588,8.53e-05,93785.0,93784.0,0.51779454]
[1735708589928,8.53e-05,93785.0,93784.0,0.4260384]
[1735708590363,8.53e-05,93785.0,93784.0,0.4330384]
[1735708590775,8.53e-05,93785.0,93784.0,0.4260384]
[1735708590966,8.53e-05,93785.0,93784.0,0.4170384]
[1735708591184,8.53e-05,93785.0,93784.0,0.4230384]
[1735708591391,8.53e-05,93785.0,93784.0,0.4320384]
[1735708591598,8.53e-05,93785.0,93784.0,0.4230384]
[1735708592092,8.53e-05,93785.0,93784.0,0.4320384]
[1735708592301,8.53e-05,93785.0,93784.0,0.4170384]
[1735708592503,8.53e-05,93785.0,93784.0,0.4230384]
[1735708593111,8.53e-05,93785.0,93784.0,0.4320384]
[1735708593966,8.53e-05,93785.0,93784.0,0.4260384]
[1735708594417,8.53e-05,93785.0,93784.0,0.4330384]
[1735708594636,8.53e-05,93785.0,93784.0,0.4240384]
[1735708595099,8.53e-05,93785.0,93784.0,0.4330384]
[1735708595321,8.53e-05,93785.0,93784.0,0.4240384]
[1735708595760,8.53e-05,93785.0,93784.0,0.4260384]
[1735708596093,8.53e-05,93785.0,93784.0,0.4230384]
[1735708596561,8.53e-05,93785.0,93784.0,0.4320384]
[1735708596796,8.53e-05,93785.0,93784.0,0.4170384]
[1735708597239,8.53e-05,93785.0,93784.0,0.4240384]
[1735708597714,8.53e-05,93785.0,93784.0,0.4170384]
[1735708598593,8.53e-05,93785.0,93784.0,0.4260384]
[1735708599050,8.53e-05,93785.0,93784.0,0.4230384]
[1735708599283,8.53e-05,93785.0,93784.0,0.4320384]
[1735708599533,8.53e-05,93785.0,93784.0,0.4170384]
[1735708599768,8.53e-05,93785.0,93784.0,0.4230384]
[1735708600006,8.53e-05,93785.0,93784.0,0.4320384]
[1735708600253,0.21060153,93799.0,93798.0,0.16433148]
[1735708600481,0.21060153,93799.0,93798.0,0.3499178]
[1735708602918,0.21060153,93799.0,93798.0,0.3579178]
[1735708605713,0.21060153,93799.0,93798.0,0.3559178]
[1735708605932,0.21060153,93799.0,93798.0,0.3519178]
[1735708606132,0.21060153,93799.0,93798.0,0.3579178]
[1735708606343,0.21068683,93799.0,93798.0,0.3579178]
[1735708606549,0.21068683,93799.0,93798.0,0.3559178]
[1735708606770,0.21068683,93799.0,93798.0,0.3519178]
[1735708607447,0.21068683,93799.0,93798.0,0.3579178]
[1735708609014,0.2133063,93799.0,93798.0,0.3579178]
[1735708609873,0.2133063,93799.0,93798.0,0.3499178]
[1735708610087,0.2133063,93799.0,93798.0,0.3559178]
[1735708610297,0.2133063,93799.0,93798.0,0.3519178]
[1735708610692,0.2133063,93799.0,93798.0,0.3579178]
[1735708611591,0.2133063,93799.0,93798.0,0.3559178]
[1735708611799,0.2133063,93799.0,93798.0,0.3579178]
[1735708612447,0.2133063,93799.0,93798.0,0.3559178]
[1735708612647,0.2133063,93799.0,93798.0,0.3579178]
[1735708613091,0.2133063,93799.0,93798.0,0.3519178]